bitfinex-derivatives/quotes_BTCF0:USTF0_20260111
["timestamp","ask_amount","ask_price","bid_price","bid_amount"]
[1768121468558,0.02456899,90768.0,90757.0,0.18970494]
[1768121468756,0.02456899,90767.0,90757.0,0.18970494]
[1768121468960,0.02456899,90766.0,90757.0,0.18970494]
[1768121469258,0.02456899,90765.0,90757.0,0.18970494]
[1768121469454,0.02456899,90764.0,90757.0,0.18970494]
[1768121469763,0.09376,90768.0,90757.0,0.18970494]
[1768121469953,0.02484668,90767.0,90757.0,0.18970494]
[1768121470153,0.02484668,90766.0,90757.0,0.18970494]
[1768121470354,0.02484668,90765.0,90757.0,0.18970494]
[1768121470556,0.02484668,90764.0,90757.0,0.18970494]
[1768121470851,0.09376,90768.0,90757.0,0.18970494]
[1768121471056,0.02484662,90767.0,90757.0,0.18970494]
[1768121471257,0.02484662,90766.0,90757.0,0.18970494]
[1768121471459,0.02484662,90765.0,90757.0,0.18970494]
[1768121471656,0.02484662,90764.0,90757.0,0.18970494]
[1768121471866,0.09376,90768.0,90757.0,0.18970494]
[1768121472068,0.02484656,90767.0,90757.0,0.18970494]
[1768121472260,0.02484656,90766.0,90757.0,0.18970494]
[1768121472460,0.02484656,90765.0,90757.0,0.18970494]
[1768121472770,0.02484656,90764.0,90757.0,0.18970494]
[1768121473067,0.09376,90768.0,90757.0,0.18970494]
[1768121473267,0.02484652,90767.0,90757.0,0.18970494]
[1768121473565,0.02484652,90766.0,90757.0,0.18970494]
[1768121473761,0.02484652,90765.0,90757.0,0.18970494]
[1768121473961,0.02484652,90764.0,90757.0,0.18970494]
[1768121474161,0.09376,90768.0,90757.0,0.18970494]
[1768121474361,0.02484649,90767.0,90757.0,0.18970494]
[1768121474667,0.02484649,90766.0,90757.0,0.18970494]
[1768121474969,0.02484649,90765.0,90757.0,0.18970494]
[1768121475168,0.02484649,90764.0,90757.0,0.18970494]
[1768121475358,0.09376,90768.0,90757.0,0.18970494]
[1768121475559,0.02484644,90767.0,90757.0,0.18970494]
[1768121475858,0.02484644,90766.0,90758.0,0.09081241]
[1768121476064,0.02484644,90765.0,90758.0,0.09081241]
[1768121476259,0.02484644,90764.0,90758.0,0.09081241]
[1768121476460,0.09376,90768.0,90758.0,0.09081241]
[1768121476771,0.02484644,90767.0,90758.0,0.09081241]
[1768121477064,0.09376,90768.0,90760.0,0.09651451]
[1768121477269,0.09376,90768.0,90760.0,0.18732692]
[1768121477867,0.09376,90769.0,90760.0,0.18732692]
[1768121479375,0.09376,90769.0,90760.0,0.15632692]
[1768121483962,0.104791,90769.0,90760.0,0.15632692]
[1768121484165,0.09376,90769.0,90760.0,0.15632692]
[1768121486278,0.09376,90769.0,90760.0,0.13832692]
[1768121486879,0.09376,90769.0,90755.0,0.011032]
[1768121489275,0.02542472,90768.0,90755.0,0.011032]
[1768121489482,0.02542472,90767.0,90755.0,0.011032]
[1768121489685,0.02542472,90766.0,90755.0,0.011032]
[1768121489982,0.02542472,90765.0,90755.0,0.011032]
[1768121490172,0.02542472,90764.0,90755.0,0.011032]
[1768121490375,0.02542472,90763.0,90755.0,0.011032]
[1768121490574,0.09376,90769.0,90755.0,0.011032]
[1768121490775,0.02542485,90768.0,90755.0,0.011032]
[1768121490969,0.02542485,90767.0,90755.0,0.011032]
[1768121491173,0.02542485,90766.0,90755.0,0.011032]
[1768121491469,0.02542485,90765.0,90755.0,0.011032]
[1768121491672,0.02542485,90764.0,90755.0,0.011032]
[1768121491883,0.02542485,90763.0,90755.0,0.011032]
[1768121492085,0.08936572,90768.0,90755.0,0.011032]
[1768121492290,0.02542499,90767.0,90755.0,0.011032]
[1768121492483,0.02542499,90766.0,90755.0,0.011032]
[1768121492684,0.02542499,90765.0,90755.0,0.011032]
[1768121492878,0.02542499,90764.0,90755.0,0.011032]
[1768121493078,0.02542499,90763.0,90755.0,0.011032]
[1768121493376,0.02542499,90762.0,90755.0,0.011032]
[1768121493682,0.02542499,90761.0,90755.0,0.011032]
[1768121493984,0.02542499,90760.0,90755.0,0.011032]
[1768121494185,0.10039672,90768.0,90755.0,0.011032]
[1768121495279,0.08936572,90768.0,90755.0,0.011032]
[1768121495586,0.08951425,90767.0,90755.0,0.011032]
[1768121495887,0.08951425,90767.0,90757.0,0.011032]
[1768121513203,0.08951425,90767.0,90748.0,0.10184541]
[1768121513204,0.08951425,90767.0,90758.0,0.011032]
[1768121513392,0.08951425,90767.0,90748.0,0.08287741]
[1768121514005,0.08951425,90767.0,90757.0,0.011032]
[1768121520112,0.08951425,90767.0,90759.0,0.011032]
[1768121520616,0.08951425,90767.0,90750.0,0.14280983]
[1768121522212,0.08951425,90767.0,90759.0,0.011032]
[1768121522710,0.08951425,90767.0,90760.0,0.011032]
[1768121523008,0.08951425,90767.0,90749.0,0.011033]
[1768121523222,0.0797373,90758.0,90752.0,0.011033]
[1768121523404,0.0797373,90758.0,90743.0,0.011034]
[1768121523804,0.0797373,90758.0,90751.0,0.011033]
[1768121524004,0.0797373,90758.0,90743.0,0.011034]
[1768121525518,0.0797373,90758.0,90751.0,0.011033]
[1768121525718,0.0797373,90758.0,90743.0,0.011034]
[1768121527215,0.0797373,90758.0,90751.0,0.011033]
[1768121529215,0.0797373,90758.0,90753.0,0.011033]
[1768121531122,0.0797373,90758.0,90754.0,0.011033]
[1768121533105,0.0797373,90758.0,90748.0,0.15177783]
[1768121533917,0.0797373,90758.0,90754.0,0.011033]
[1768121534124,0.09834214,90759.0,90748.0,0.15177783]
[1768121535123,0.09834214,90759.0,90756.0,0.011032]
[1768121536822,0.104791,90767.0,90756.0,0.011032]
[1768121537023,0.12099863,90766.0,90756.0,0.011032]
[1768121537222,0.09531356,90764.0,90756.0,0.011032]
[1768121537429,0.02568507,90763.0,90756.0,0.011032]
[1768121537724,0.02568507,90762.0,90756.0,0.011032]
[1768121537917,0.12099863,90761.0,90756.0,0.011032]
[1768121538110,0.02568507,90760.0,90756.0,0.011032]
[1768121538313,0.09531356,90761.0,90756.0,0.011032]
[1768121538528,0.02568507,90760.0,90756.0,0.011032]
[1768121538823,0.09531356,90761.0,90757.0,0.011032]
[1768121539025,0.02568507,90760.0,90757.0,0.011032]
[1768121539225,0.09531356,90761.0,90757.0,0.011032]
[1768121539422,0.02568508,90760.0,90757.0,0.011032]
[1768121539627,0.09531356,90761.0,90757.0,0.011032]
[1768121539817,0.02568508,90760.0,90757.0,0.011032]
[1768121540018,0.09531356,90761.0,90757.0,0.011032]
[1768121540218,0.02568508,90760.0,90757.0,0.011032]
[1768121540422,0.09531356,90761.0,90757.0,0.011032]
[1768121540723,0.02568511,90760.0,90757.0,0.011032]
[1768121541019,0.02568511,90759.0,90757.0,0.011032]
[1768121541227,0.18907356,90767.0,90758.0,0.011032]
[1768121542527,0.18907356,90767.0,90748.0,0.13784283]
[1768121543030,0.09531356,90766.0,90750.0,0.15177783]
[1768121544327,0.09531356,90766.0,90755.0,0.011032]
[1768121544515,0.09531356,90766.0,90750.0,0.15177783]
[1768121544516,0.09531356,90766.0,90753.0,0.011033]
[1768121545427,0.09531356,90766.0,90751.0,0.011033]
[1768121547228,0.10634456,90765.0,90751.0,0.011033]
[1768121547628,0.10634456,90765.0,90750.0,0.15177783]
[1768121551931,0.011032,90763.0,90750.0,0.15177783]
[1768121552127,0.011032,90763.0,90749.0,0.011033]
[1768121552430,0.10634556,90763.0,90750.0,0.15177783]
[1768121553632,0.10634556,90763.0,90749.0,0.011033]
[1768121554533,0.10634556,90763.0,90750.0,0.15177783]
[1768121555131,0.10634556,90763.0,90749.0,0.011033]
[1768121555332,0.10634556,90763.0,90750.0,0.15177783]
[1768121555834,0.09531356,90763.0,90750.0,0.15177783]
[1768121562239,0.011031,90765.0,90750.0,0.15177783]
[1768121566442,0.011032,90764.0,90749.0,0.011033]
[1768121566641,0.011032,90764.0,90750.0,0.15177783]
[1768121570048,0.011032,90764.0,90750.0,0.25691944]
[1768121570248,0.011031,90766.0,90750.0,0.25691944]
[1768121570448,0.02589771,90765.0,90750.0,0.25691944]
[1768121570649,0.011031,90766.0,90750.0,0.25691944]
[1768121570850,0.02583582,90765.0,90750.0,0.25691944]
[1768121571051,0.011031,90766.0,90750.0,0.25691944]
[1768121571250,0.02583582,90765.0,90750.0,0.25691944]
[1768121571452,0.011031,90766.0,90750.0,0.25691944]
[1768121571648,0.02583606,90765.0,90750.0,0.25691944]
[1768121571849,0.011031,90766.0,90750.0,0.25691944]
[1768121572050,0.02583606,90765.0,90750.0,0.25691944]
[1768121572244,0.011031,90766.0,90750.0,0.25691944]
[1768121572449,0.02583636,90765.0,90750.0,0.25691944]
[1768121572657,0.02583636,90764.0,90750.0,0.25691944]
[1768121572857,0.02583636,90763.0,90750.0,0.25691944]
[1768121573056,0.02583636,90762.0,90750.0,0.25691944]
[1768121573259,0.011031,90766.0,90750.0,0.25691944]
[1768121573562,0.02583676,90765.0,90751.0,0.09410861]
[1768121573760,0.02583676,90764.0,90751.0,0.09410861]
[1768121573962,0.02583676,90763.0,90751.0,0.09410861]
[1768121574163,0.02583676,90762.0,90751.0,0.09410861]
[1768121574457,0.011031,90766.0,90751.0,0.09410861]
[1768121574657,0.02583752,90765.0,90751.0,0.09410861]
[1768121574857,0.02583752,90764.0,90751.0,0.09410861]
[1768121575059,0.02583752,90763.0,90751.0,0.09410861]
[1768121575259,0.02583752,90762.0,90751.0,0.09410861]
[1768121575459,0.011031,90764.0,90751.0,0.09410861]
[1768121575664,0.02583752,90763.0,90751.0,0.09410861]
[1768121575963,0.02583752,90762.0,90751.0,0.09410861]
[1768121576165,0.011031,90764.0,90751.0,0.09410861]
[1768121576365,0.02583752,90763.0,90751.0,0.09410861]
[1768121576564,0.02583752,90762.0,90751.0,0.09410861]
[1768121576761,0.011031,90764.0,90751.0,0.09410861]
[1768121576965,0.02583752,90763.0,90751.0,0.09410861]
[1768121577167,0.02583752,90762.0,90751.0,0.09410861]
[1768121577366,0.011031,90764.0,90751.0,0.09410861]
[1768121577569,0.02583754,90763.0,90751.0,0.09410861]
[1768121577758,0.02583754,90762.0,90751.0,0.09410861]
[1768121577957,0.011031,90764.0,90751.0,0.09410861]
[1768121578166,0.02583754,90763.0,90751.0,0.09410861]
[1768121578366,0.02583754,90762.0,90751.0,0.09410861]
[1768121578562,0.011031,90764.0,90751.0,0.09410861]
[1768121578768,0.02583754,90763.0,90751.0,0.09410861]
[1768121578967,0.02583754,90762.0,90751.0,0.09410861]
[1768121579167,0.011031,90764.0,90751.0,0.09410861]
[1768121579368,0.02583754,90763.0,90751.0,0.09410861]
[1768121579572,0.02583754,90762.0,90751.0,0.09410861]
[1768121579773,0.011031,90764.0,90751.0,0.09410861]
[1768121580069,0.02583754,90763.0,90751.0,0.09410861]
[1768121580271,0.02583754,90762.0,90751.0,0.09410861]
[1768121580472,0.011031,90764.0,90751.0,0.09410861]
[1768121580774,0.02583755,90763.0,90751.0,0.09410861]
[1768121580969,0.02583755,90762.0,90751.0,0.09410861]
[1768121581160,0.011031,90764.0,90751.0,0.09410861]
[1768121581360,0.02583755,90763.0,90751.0,0.09410861]
[1768121581571,0.02583755,90762.0,90751.0,0.09410861]
[1768121581871,0.011031,90764.0,90751.0,0.09410861]
[1768121582073,0.02583755,90763.0,90751.0,0.09410861]
[1768121582371,0.02583755,90762.0,90751.0,0.09410861]
[1768121582571,0.02583756,90761.0,90751.0,0.09410861]
[1768121582873,0.01103,90774.0,90762.0,0.09410861]
[1768121583072,0.09376,90773.0,90756.0,0.011032]
[1768121583276,0.09376,90773.0,90758.0,0.011032]
[1768121583768,0.09376,90773.0,90759.0,0.011032]
[1768121584162,0.01103,90778.0,90760.0,0.011032]
[1768121584363,0.01103,90778.0,90750.0,0.011033]
[1768121584364,0.01103,90775.0,90758.0,0.011032]
[1768121584663,0.01103,90775.0,90750.0,0.006065]
[1768121584863,0.01103,90775.0,90759.0,0.011032]
[1768121585070,0.01103,90775.0,90760.0,0.09204728]
[1768121587171,0.10479,90777.0,90760.0,0.09204728]
[1768121587380,0.10479,90777.0,90761.0,0.10307928]
[1768121591375,0.01103,90776.0,90761.0,0.09204728]
[1768121591777,0.01103,90776.0,90761.0,0.08304728]
[1768121594473,0.01103,90776.0,90761.0,0.09407928]
[1768121594676,0.09376,90777.0,90761.0,0.09407928]
[1768121594973,0.0248539,90776.0,90761.0,0.09407928]
[1768121595177,0.0248539,90775.0,90761.0,0.09407928]
[1768121595373,0.0248539,90774.0,90761.0,0.09407928]
[1768121595572,0.0248539,90773.0,90761.0,0.09407928]
[1768121595775,0.0248539,90772.0,90761.0,0.09407928]
[1768121595965,0.0248539,90771.0,90762.0,0.011032]
[1768121596172,0.0248539,90770.0,90762.0,0.011032]
[1768121596372,0.09376,90777.0,90762.0,0.011032]
[1768121596572,0.02485257,90776.0,90762.0,0.011032]
[1768121596770,0.02485257,90775.0,90762.0,0.011032]
[1768121596970,0.02485257,90774.0,90762.0,0.011032]
[1768121597170,0.02485257,90773.0,90762.0,0.011032]
[1768121597371,0.02485257,90772.0,90762.0,0.011032]
[1768121597577,0.02485257,90771.0,90762.0,0.011032]
[1768121597779,0.02485257,90770.0,90762.0,0.011032]
[1768121597978,0.09376,90777.0,90762.0,0.011032]
[1768121598179,0.02485183,90776.0,90762.0,0.011032]
[1768121598466,0.02485183,90775.0,90762.0,0.011032]
[1768121598671,0.02485183,90774.0,90762.0,0.011032]
[1768121598869,0.02485183,90773.0,90761.0,0.08304728]
[1768121599073,0.02485183,90772.0,90761.0,0.08304728]
[1768121599283,0.02485183,90771.0,90762.0,0.011032]
[1768121599471,0.02485183,90770.0,90762.0,0.011032]
[1768121599671,0.09376,90777.0,90762.0,0.011032]
[1768121599871,0.02485103,90776.0,90762.0,0.011032]
[1768121600076,0.02485103,90775.0,90762.0,0.011032]
[1768121600277,0.02485103,90774.0,90762.0,0.011032]
[1768121600477,0.02485103,90773.0,90762.0,0.011032]
[1768121600678,0.02485103,90772.0,90762.0,0.011032]
[1768121600878,0.02485103,90771.0,90762.0,0.011032]
[1768121601080,0.09376,90777.0,90762.0,0.011032]
[1768121601384,0.02407857,90776.0,90762.0,0.011032]
[1768121601584,0.02407857,90775.0,90762.0,0.011032]
[1768121601782,0.02407857,90774.0,90762.0,0.011032]
[1768121602086,0.02407857,90773.0,90762.0,0.011032]
[1768121602278,0.02407857,90772.0,90762.0,0.011032]
[1768121602479,0.09376,90774.0,90762.0,0.011032]
[1768121602684,0.02407802,90773.0,90762.0,0.011032]
[1768121602888,0.02407802,90772.0,90762.0,0.011032]
[1768121603188,0.09376,90774.0,90762.0,0.011032]
[1768121603386,0.02407789,90773.0,90762.0,0.011032]
[1768121603685,0.02407789,90772.0,90762.0,0.011032]
[1768121603887,0.09376,90774.0,90762.0,0.011032]
[1768121604087,0.02407789,90773.0,90762.0,0.011032]
[1768121604281,0.02407789,90772.0,90762.0,0.011032]
[1768121604483,0.09376,90774.0,90762.0,0.011032]
[1768121604680,0.02407783,90773.0,90762.0,0.011032]
[1768121604879,0.02407783,90772.0,90762.0,0.011032]
[1768121605081,0.09376,90774.0,90762.0,0.011032]
[1768121605282,0.02407783,90773.0,90762.0,0.011032]
[1768121605482,0.02407783,90772.0,90762.0,0.011032]
[1768121605787,0.02407783,90771.0,90762.0,0.011032]
[1768121605988,0.02407783,90771.0,90761.0,0.08304728]
[1768121605989,0.09376,90774.0,90761.0,0.08304728]
[1768121606194,0.02407821,90773.0,90762.0,0.011032]
[1768121606386,0.02407821,90772.0,90763.0,0.011031]
[1768121606582,0.02407821,90771.0,90763.0,0.011031]
[1768121606782,0.09376,90774.0,90761.0,0.09407928]
[1768121606982,0.02407825,90773.0,90761.0,0.09407928]
[1768121607178,0.02407825,90772.0,90761.0,0.09407928]
[1768121607390,0.02407825,90771.0,90761.0,0.09407928]
[1768121607590,0.09376,90774.0,90761.0,0.09407928]
[1768121607888,0.02407849,90773.0,90761.0,0.09407928]
[1768121608091,0.02407849,90772.0,90762.0,0.011032]
[1768121608290,0.02407849,90771.0,90762.0,0.011032]
[1768121608592,0.09376,90774.0,90762.0,0.011032]
[1768121608792,0.0240788,90773.0,90762.0,0.011032]
[1768121609091,0.0240788,90772.0,90763.0,0.011031]
[1768121609292,0.0240788,90771.0,90763.0,0.011031]
[1768121609589,0.09376,90774.0,90763.0,0.011031]
[1768121609888,0.0240792,90773.0,90763.0,0.011031]
[1768121610091,0.0240792,90772.0,90763.0,0.011031]
[1768121610276,0.0240792,90771.0,90763.0,0.011031]
[1768121610480,0.09376,90774.0,90763.0,0.011031]
[1768121610683,0.02407923,90773.0,90763.0,0.011031]
[1768121610980,0.02407923,90772.0,90763.0,0.011031]
[1768121611180,0.02407923,90771.0,90763.0,0.011031]
[1768121611380,0.09376,90774.0,90763.0,0.011031]
[1768121611593,0.02407978,90773.0,90763.0,0.011031]
[1768121611888,0.02407978,90772.0,90763.0,0.011031]
[1768121612090,0.02407978,90771.0,90763.0,0.011031]
[1768121612291,0.09376,90774.0,90763.0,0.011031]
[1768121612483,0.02408045,90773.0,90763.0,0.011031]
[1768121612683,0.02408045,90772.0,90763.0,0.011031]
[1768121612890,0.02408045,90771.0,90763.0,0.011031]
[1768121613095,0.09376,90774.0,90761.0,0.08304728]
[1768121613396,0.02408041,90773.0,90761.0,0.08304728]
[1768121613591,0.02408041,90772.0,90761.0,0.08304728]
[1768121613778,0.02408041,90771.0,90761.0,0.08304728]
[1768121613982,0.09376,90774.0,90761.0,0.08304728]
[1768121614184,0.02408113,90773.0,90763.0,0.011031]
[1768121614383,0.02408113,90772.0,90763.0,0.011031]
[1768121614694,0.02408113,90771.0,90763.0,0.011031]
[1768121614888,0.09376,90774.0,90763.0,0.011031]
[1768121615084,0.0240815,90773.0,90763.0,0.011031]
[1768121615285,0.0240815,90772.0,90763.0,0.011031]
[1768121615485,0.0240815,90771.0,90763.0,0.011031]
[1768121615691,0.09376,90774.0,90763.0,0.011031]
[1768121615894,0.02408182,90773.0,90763.0,0.011031]
[1768121616092,0.02408182,90772.0,90763.0,0.011031]
[1768121616292,0.02408182,90771.0,90763.0,0.011031]
[1768121616492,0.09376,90774.0,90763.0,0.011031]
[1768121616795,0.02408205,90773.0,90763.0,0.011031]
[1768121616997,0.02408205,90772.0,90763.0,0.011031]
[1768121617295,0.02408205,90771.0,90763.0,0.011031]
[1768121617596,0.09376,90774.0,90763.0,0.011031]
[1768121617798,0.02408234,90773.0,90763.0,0.011031]
[1768121618094,0.02408234,90772.0,90763.0,0.011031]
[1768121618303,0.02408234,90771.0,90763.0,0.011031]
[1768121618493,0.09376,90774.0,90763.0,0.011031]
[1768121618684,0.02408251,90773.0,90763.0,0.011031]
[1768121618887,0.02408251,90772.0,90763.0,0.011031]
[1768121619196,0.02408251,90771.0,90763.0,0.011031]
[1768121619396,0.09376,90774.0,90763.0,0.011031]
[1768121619597,0.02408272,90773.0,90763.0,0.011031]
[1768121619800,0.02408272,90772.0,90763.0,0.011031]
[1768121619983,0.02408272,90771.0,90763.0,0.011031]
[1768121620188,0.09376,90774.0,90758.0,0.08522827]
[1768121620483,0.02408297,90773.0,90758.0,0.08522827]
[1768121620686,0.02408297,90772.0,90762.0,0.011032]
[1768121620898,0.02408297,90771.0,90762.0,0.011032]
[1768121621208,0.09376,90774.0,90762.0,0.011032]
[1768121621398,0.02408326,90773.0,90763.0,0.011031]
[1768121621600,0.02408326,90772.0,90763.0,0.011031]
[1768121621899,0.02408326,90771.0,90763.0,0.011031]
[1768121622199,0.09376,90774.0,90763.0,0.011031]
[1768121622404,0.02408363,90773.0,90763.0,0.011031]
[1768121622600,0.02408363,90772.0,90763.0,0.011031]
[1768121622800,0.02408363,90771.0,90763.0,0.011031]
[1768121623003,0.02408363,90770.0,90763.0,0.011031]
[1768121623300,0.02408363,90769.0,90763.0,0.011031]
[1768121623501,0.02408363,90768.0,90763.0,0.011031]
[1768121623705,0.02408407,90767.0,90763.0,0.011031]
[1768121623902,0.02408407,90766.0,90763.0,0.011031]
[1768121624103,0.02408407,90765.0,90763.0,0.011031]
[1768121624307,7e-08,90764.0,90763.0,0.011031]
[1768121627200,7e-08,90764.0,90758.0,0.08425927]
[1768121627400,0.09376,90774.0,90758.0,0.08425927]
[1768121629200,0.09376,90774.0,90763.0,0.011031]
[1768121634304,0.09376,90774.0,90763.0,0.008031]
[1768121636221,0.02398356,90773.0,90763.0,0.008031]
[1768121636507,0.02398356,90772.0,90763.0,0.008031]
[1768121636707,0.02398356,90771.0,90763.0,0.008031]
[1768121636896,0.09376,90774.0,90763.0,0.008031]
[1768121637095,0.02398375,90773.0,90763.0,0.008031]
[1768121637296,0.02398375,90772.0,90763.0,0.008031]
[1768121637498,0.02398375,90771.0,90763.0,0.008031]
[1768121637697,0.09376,90774.0,90763.0,0.008031]
[1768121637897,0.02398375,90773.0,90763.0,0.008031]
[1768121638102,0.02398375,90772.0,90763.0,0.008031]
[1768121638303,0.02398375,90771.0,90763.0,0.008031]
[1768121638497,0.09376,90774.0,90763.0,0.008031]
[1768121638711,0.02398376,90773.0,90763.0,0.008031]
[1768121639018,0.02398376,90772.0,90763.0,0.008031]
[1768121639198,0.02398376,90771.0,90763.0,0.008031]
[1768121639398,0.09376,90774.0,90763.0,0.008031]
[1768121639598,0.02398376,90773.0,90763.0,0.008031]
[1768121639798,0.02398376,90772.0,90763.0,0.008031]
[1768121640002,0.02398376,90771.0,90763.0,0.008031]
[1768121640213,0.09376,90774.0,90763.0,0.008031]
[1768121640413,0.02398376,90773.0,90763.0,0.008031]
[1768121640612,0.02398376,90772.0,90763.0,0.008031]
[1768121640912,0.02398376,90771.0,90763.0,0.008031]
[1768121641110,0.09376,90774.0,90763.0,0.008031]
[1768121641306,0.02398376,90773.0,90763.0,0.008031]
[1768121641612,0.02398376,90772.0,90760.0,0.14879413]
[1768121641910,0.02398376,90771.0,90763.0,0.011031]
[1768121642115,0.09376,90774.0,90763.0,0.011031]
[1768121642413,0.02398376,90773.0,90763.0,0.011031]
[1768121642716,0.02398376,90772.0,90763.0,0.011031]
[1768121642902,0.02398376,90771.0,90763.0,0.011031]
[1768121643102,0.09376,90774.0,90763.0,0.011031]
[1768121643302,0.02398376,90773.0,90763.0,0.011031]
[1768121643510,0.02398376,90772.0,90763.0,0.011031]
[1768121643717,0.02398376,90771.0,90763.0,0.011031]
[1768121643915,0.09376,90774.0,90763.0,0.011031]
[1768121644111,0.02398372,90773.0,90763.0,0.011031]
[1768121644310,0.02398372,90772.0,90763.0,0.011031]
[1768121644513,0.02398372,90771.0,90763.0,0.011031]
[1768121644813,0.09376,90774.0,90764.0,0.011031]
[1768121645005,0.02398376,90773.0,90764.0,0.011031]
[1768121645301,0.02398376,90772.0,90764.0,0.011031]
[1768121645500,0.02398376,90771.0,90764.0,0.011031]
[1768121645706,0.09376,90774.0,90764.0,0.011031]
[1768121645905,0.02398366,90773.0,90764.0,0.011031]
[1768121646113,0.02398366,90772.0,90764.0,0.011031]
[1768121646416,0.02398366,90771.0,90764.0,0.011031]
[1768121646717,0.09376,90774.0,90764.0,0.011031]
[1768121646913,0.02398385,90773.0,90764.0,0.011031]
[1768121647114,0.02398385,90772.0,90764.0,0.011031]
[1768121647305,0.02398385,90771.0,90764.0,0.011031]
[1768121647503,0.09376,90774.0,90760.0,0.14879413]
[1768121647706,0.02398398,90773.0,90762.0,0.011032]
[1768121647911,0.02398398,90772.0,90762.0,0.011032]
[1768121648205,0.02398398,90771.0,90762.0,0.011032]
[1768121648406,0.09376,90774.0,90762.0,0.011032]
[1768121648605,0.02398385,90773.0,90762.0,0.011032]
[1768121648808,0.09376,90774.0,90760.0,0.14082613]
[1768121648809,0.02398385,90772.0,90760.0,0.14082613]
[1768121649015,0.02398385,90771.0,90760.0,0.14082613]
[1768121649215,0.09376,90774.0,90760.0,0.14082613]
[1768121649416,0.02398378,90773.0,90760.0,0.14082613]
[1768121649615,0.02398378,90772.0,90760.0,0.14082613]
[1768121649819,0.02398378,90771.0,90760.0,0.14082613]
[1768121650024,0.09376,90774.0,90760.0,0.14082613]
[1768121650213,0.02398378,90773.0,90763.0,0.011031]
[1768121650414,0.02398378,90772.0,90763.0,0.011031]
[1768121650619,0.02398378,90771.0,90763.0,0.011031]
[1768121650919,0.09376,90774.0,90763.0,0.011031]
[1768121651230,0.02398373,90773.0,90763.0,0.011031]
[1768121651421,0.02398373,90772.0,90763.0,0.011031]
[1768121651615,0.02398373,90771.0,90763.0,0.011031]
[1768121651916,0.09376,90774.0,90763.0,0.011031]
[1768121652108,0.02398369,90773.0,90763.0,0.011031]
[1768121652310,0.02398369,90772.0,90763.0,0.011031]
[1768121652512,0.02398369,90771.0,90763.0,0.011031]
[1768121652722,0.09376,90774.0,90763.0,0.011031]
[1768121652924,0.02398365,90773.0,90763.0,0.011031]
[1768121653122,0.02398365,90772.0,90763.0,0.011031]
[1768121653324,0.02398365,90771.0,90763.0,0.011031]
[1768121653525,0.09376,90774.0,90763.0,0.011031]
[1768121653719,0.02398362,90773.0,90763.0,0.011031]
[1768121653919,0.02398362,90772.0,90763.0,0.011031]
[1768121654219,0.02398362,90771.0,90763.0,0.011031]
[1768121654421,0.09376,90774.0,90760.0,0.14082613]
[1768121654623,0.02398359,90773.0,90763.0,0.011031]
[1768121654824,0.02398359,90772.0,90763.0,0.011031]
[1768121655019,0.02398359,90771.0,90763.0,0.011031]
[1768121655326,0.09376,90774.0,90760.0,0.14082613]
[1768121655630,0.02398357,90773.0,90760.0,0.14082613]
[1768121655821,0.02398357,90772.0,90760.0,0.14082613]
[1768121656022,0.02398357,90771.0,90760.0,0.14082613]
[1768121656223,0.09376,90774.0,90763.0,0.011031]
[1768121656516,0.02398355,90773.0,90763.0,0.011031]
[1768121656721,0.02398355,90772.0,90760.0,0.15176313]
[1768121656930,0.02398355,90771.0,90764.0,0.011031]
[1768121657226,0.09376,90774.0,90764.0,0.011031]
[1768121657526,0.02398354,90773.0,90764.0,0.011031]
[1768121657726,0.02398354,90772.0,90764.0,0.011031]
[1768121657924,0.02398354,90771.0,90764.0,0.011031]
[1768121658128,0.09376,90774.0,90764.0,0.011031]
[1768121658425,0.02398354,90773.0,90764.0,0.011031]
[1768121658624,0.02398354,90772.0,90764.0,0.011031]
[1768121658822,0.02398354,90771.0,90764.0,0.011031]
[1768121659010,0.09376,90774.0,90764.0,0.011031]
[1768121659215,0.02398353,90773.0,90764.0,0.011031]
[1768121659515,0.02398353,90772.0,90764.0,0.011031]
[1768121659717,0.02398353,90771.0,90764.0,0.011031]
[1768121659917,0.09376,90774.0,90764.0,0.011031]
[1768121660120,0.02398356,90773.0,90764.0,0.011031]
[1768121660320,0.02398356,90772.0,90760.0,0.15176313]
[1768121660623,0.02398356,90771.0,90760.0,0.15176313]
[1768121660820,0.02404425,90770.0,90760.0,0.15176313]
[1768121661121,0.09376,90774.0,90761.0,0.011032]
[1768121661323,0.02404422,90773.0,90761.0,0.011032]
[1768121661621,0.09376,90774.0,90761.0,0.011032]
[1768121661622,0.02404422,90772.0,90761.0,0.011032]
[1768121661822,0.02404422,90771.0,90761.0,0.011032]
[1768121662022,0.02404422,90770.0,90761.0,0.011032]
[1768121662228,0.09376,90774.0,90761.0,0.011032]
[1768121662530,0.02404419,90773.0,90761.0,0.011032]
[1768121662828,0.02404419,90772.0,90761.0,0.011032]
[1768121663026,0.02404419,90771.0,90761.0,0.011032]
[1768121663222,0.02404419,90770.0,90761.0,0.011032]
[1768121663422,0.09376,90774.0,90761.0,0.011032]
[1768121663627,0.02404418,90773.0,90760.0,0.14379513]
[1768121663819,0.02404418,90772.0,90760.0,0.15176313]
[1768121664023,0.02404418,90771.0,90760.0,0.15176313]
[1768121664221,0.02404418,90770.0,90761.0,0.011032]
[1768121664424,0.09376,90774.0,90761.0,0.011032]
[1768121664720,0.02404417,90773.0,90761.0,0.011032]
[1768121664920,0.02404417,90772.0,90761.0,0.011032]
[1768121665120,0.02404417,90771.0,90761.0,0.011032]
[1768121665326,0.02404417,90770.0,90761.0,0.011032]
[1768121665529,0.09376,90774.0,90761.0,0.011032]
[1768121665724,0.02404416,90773.0,90761.0,0.011032]
[1768121666024,0.02404416,90772.0,90761.0,0.011032]
[1768121666232,0.02404416,90771.0,90761.0,0.011032]
[1768121666423,0.02404416,90770.0,90761.0,0.011032]
[1768121666633,0.09376,90774.0,90761.0,0.011032]
[1768121666834,0.02404416,90773.0,90761.0,0.011032]
[1768121667133,0.02404416,90772.0,90761.0,0.011032]
[1768121667432,0.02404416,90771.0,90761.0,0.011032]
[1768121667733,0.02404416,90770.0,90761.0,0.011032]
[1768121667925,0.09376,90774.0,90761.0,0.011032]
[1768121668125,0.02404417,90773.0,90761.0,0.011032]
[1768121668424,0.02404417,90772.0,90761.0,0.011032]
[1768121668628,0.02404417,90771.0,90761.0,0.011032]
[1768121668822,0.02404417,90770.0,90762.0,0.011032]
[1768121669028,0.09376,90774.0,90762.0,0.011032]
[1768121669233,0.02404418,90773.0,90762.0,0.011032]